bitfinex/quotes_ETHUSD_20220218
["timestamp","ask_amount","ask_price","bid_price","bid_amount"]
[1645200776637,0.89755,2788.1,2787.9,1.95378792]
[1645200776839,0.89755,2788.1,2787.9,1.95744586]
[1645200777096,0.10015689,2788.2,2787.9,1.95744586]
[1645200777691,0.10015689,2788.2,2788.1,1.3211]
[1645200777893,0.10015689,2788.2,2788.1,2.2184314]
[1645200778093,0.89734,2788.5,2788.1,2.2184314]
[1645200778293,2.04668486,2788.7,2788.1,0.6973314]
[1645200778697,0.89746,2788.3,2788.0,1.7946628]
[1645200778893,4.12275917,2788.3,2788.0,1.7946628]
[1645200779094,1.79512,2788.2,2788.0,1.79850343]
[1645200779494,1.79512,2788.2,2788.0,0.00384063]
[1645200780294,1.79512,2788.2,2787.9,1.05619762]
[1645200780295,6.5,2788.1,2787.9,1.05619762]
[1645200780495,6.5,2788.1,2787.8,4.09e-05]
[1645200780496,6.0,2787.9,2787.8,4.09e-05]
[1645200780695,9.19373,2787.8,2786.1,1.3211]
[1645200780946,9.19373,2787.8,2787.1,1.3211]
[1645200780947,0.25,2787.5,2787.1,1.3211]
[1645200781144,0.59764679,2787.2,2787.1,1.3211]
[1645200781341,0.59764679,2787.2,2786.9,1.7955649]
[1645200781541,0.59764679,2787.2,2785.7,11.59419199]
[1645200781542,0.59764679,2787.2,2786.5,1.3211]
[1645200781747,1.79542679,2787.2,2785.6,3.2537]
[1645200781943,1.79542679,2787.2,2786.2,1.3211]
[1645200782342,1.49542679,2787.2,2786.9,1.3211]
[1645200782543,1.49542679,2787.2,2786.6,1.3211]
[1645200782544,0.89804,2787.0,2786.6,1.3211]
[1645200782747,1.43050371,2787.0,2786.9,1.3211]
[1645200783144,0.25,2787.5,2786.9,1.3211]
[1645200783344,0.25,2787.5,2787.4,22.1211]
[1645200783545,7.0113,2789.3,2787.4,22.1211]
[1645200783546,0.89735,2788.5,2787.6,20.8]
[1645200783744,0.40576756,2789.3,2788.4,1.3211]
[1645200783947,0.50615226,2788.5,2788.3,1.3211]
[1645200784144,0.50615226,2788.5,2788.1,1.3211]
[1645200784145,0.89737,2788.5,2788.1,1.3211]
[1645200784342,0.00884944,2788.7,2787.7,0.417]
[1645200784343,0.00884944,2788.7,2788.4,22.1211]
[1645200784598,0.00884944,2788.7,2788.6,22.1211]
[1645200784799,4.944e-05,2788.7,2788.6,22.1211]
[1645200785097,2.3547,2791.1,2788.7,6.0]
[1645200785098,1.79385,2790.2,2788.7,6.0]
[1645200785401,0.00904957,2788.9,2788.8,4.0049532]
[1645200785596,0.00904957,2788.9,2788.8,5.6260532]
[1645200786199,0.89717,2789.2,2788.8,3.8879532]
[1645200786398,1.15327317,2789.2,2788.8,2.9909221]
[1645200786599,1.15327317,2789.2,2789.0,0.8972318]
[1645200786798,0.25610317,2789.2,2789.0,0.8972318]
[1645200787397,6.19125,2790.3,2789.0,0.8972318]
[1645200787599,6.19125,2790.3,2788.3,1.3211]
[1645200787600,3.5,2789.9,2788.3,1.3211]
[1645200787800,3.5,2789.9,2787.8,6.4347]
[1645200787801,0.89698,2789.7,2787.8,1.3211]
[1645200788001,0.417,2789.6,2788.2,0.8975487]
[1645200788198,3.5,2789.9,2788.2,0.8975487]
[1645200788199,1.79487,2789.3,2788.2,0.8975487]
[1645200788437,0.89743,2789.3,2788.2,0.8975487]
[1645200788639,0.62450881,2788.8,2788.2,0.8975487]
[1645200788940,0.89745,2788.7,2788.2,0.8975487]
[1645200789338,0.89745,2788.7,2788.1,1.7950285]
[1645200789339,3.09494,2788.7,2788.1,1.7950285]
[1645200789640,3.09494,2788.7,2787.8,1.3211]
[1645200789641,4.89046,2788.7,2787.8,1.3211]
[1645200789838,1.79515,2788.5,2787.8,1.3211]
[1645200790038,0.91483741,2788.6,2788.1,0.00464523]
[1645200790239,0.58312268,2788.4,2788.1,0.00464523]
[1645200790643,2.67833268,2788.4,2788.1,0.00464523]
[1645200790840,2.79517,2788.3,2788.1,0.00464523]
[1645200791142,2.79517,2788.3,2788.1,6.716e-05]
[1645200791342,2.79517,2788.3,2786.6,1.3211]
[1645200791343,10.1789,2788.2,2786.4,3.5]
[1645200791546,10.1789,2788.2,2786.3,3.5]
[1645200791547,0.89797,2788.0,2786.3,3.5]
[1645200791741,0.89816,2787.6,2786.1,3.5]
[1645200791940,0.89816,2787.6,2787.1,1.3211]
[1645200791941,1.79622,2787.2,2787.1,1.3211]
[1645200792191,0.66623218,2787.5,2787.1,1.3211]
[1645200792390,0.66623218,2787.5,2787.3,1.3211]
[1645200792592,1.86395218,2787.5,2786.0,7.2702785]
[1645200792792,1.19792,2787.3,2786.2,0.8978533]
[1645200792991,1.79613,2787.1,2786.1,1.7962229]
[1645200793193,3.59242,2787.1,2786.3,1.3211]
[1645200793391,4.59242,2787.1,2786.3,1.3211]
[1645200793594,0.89815,2787.0,2786.3,1.3211]
[1645200793793,0.864969,2787.6,2786.4,0.8980913]
[1645200793995,0.864969,2787.6,2787.4,1.3211]
[1645200794394,0.864969,2787.6,2787.4,1.6211]
[1645200795096,0.864969,2787.6,2787.4,2.518737]
[1645200795294,0.864969,2787.6,2787.4,1.197637]
[1645200795697,0.50787927,2787.9,2787.4,1.197637]
[1645200796141,2.69329,2787.7,2787.4,2.518737]
[1645200796341,3.59096,2787.7,2787.4,1.197637]
[1645200797143,0.89771,2787.6,2787.4,1.197637]
[1645200797342,0.89771,2787.6,2787.4,1.597637]
[1645200797943,0.89771,2787.6,2787.4,2.918737]
[1645200798144,0.89771,2787.6,2787.4,1.597637]
[1645200798745,1.79533,2788.0,2787.4,1.597637]
[1645200798746,1.79518,2788.0,2787.5,25.6211]
[1645200798947,3.59939381,2788.9,2787.9,1.3211]
[1645200798948,0.00210384,2788.4,2787.9,1.3211]
[1645200799145,0.00210384,2788.4,2788.3,1.3211]
[1645200799589,0.00210384,2788.4,2788.3,1.6211]
[1645200799790,0.00419305,2788.4,2788.3,1.6211]
[1645200800091,0.00208921,2788.4,2788.3,1.6211]
[1645200801193,0.00208841,2788.5,2788.3,1.6211]
[1645200801396,1.79706841,2788.5,2788.3,1.6211]
[1645200801592,1.79706841,2788.5,2788.3,0.3]
[1645200801794,2.09706841,2788.5,2787.7,0.90054201]
[1645200801992,0.89773,2788.3,2787.7,0.90054201]
[1645200802192,0.89773,2788.3,2787.8,0.3]
[1645200802391,0.89773,2788.3,2787.7,0.00284561]
[1645200802392,0.51734288,2787.9,2787.7,0.00284561]
[1645200802593,1.94757362,2787.9,2787.7,0.00284561]
[1645200803192,2.84521362,2787.9,2787.7,0.90047681]
[1645200803440,2.84521362,2787.9,2787.7,0.8976312]
[1645200804540,1.94757362,2787.9,2787.7,2.2187312]
[1645200804739,1.94757362,2787.9,2787.7,0.8976312]
[1645200805038,2.94757362,2787.9,2787.7,0.8976312]
[1645200805239,1.93944363,2787.9,2787.7,2.2187312]
[1645200805442,2.93944363,2787.9,2787.7,2.2187312]
[1645200805639,2.93944363,2787.9,2787.7,0.8976312]
[1645200805839,2.93944363,2787.9,2787.7,2.2187312]
[1645200806042,1.43023074,2787.9,2787.7,2.2187312]
[1645200806246,1.43023074,2787.9,2787.8,0.3]
[1645200806441,1.43023074,2787.9,2787.8,0.37260323]
[1645200806843,0.00205795,2788.4,2788.0,21.6974464]
[1645200807092,0.00205795,2788.4,2788.0,1.1974464]
[1645200807093,0.0020522,2788.4,2788.0,1.1974464]
[1645200807293,0.0020522,2788.4,2788.0,0.3]
[1645200807491,1.38202602,2788.7,2787.9,2.0948928]
[1645200807891,1.38202602,2788.7,2788.2,1.7945733]
[1645200808095,0.00209387,2788.4,2788.2,1.7945733]
[1645200808695,0.00209387,2788.4,2788.3,0.3]
[1645200808894,0.00209387,2788.4,2788.2,1.7945733]
[1645200809091,0.89954387,2788.4,2788.2,1.7945733]
[1645200809295,0.89745,2788.4,2788.2,1.7945733]
[1645200809692,1.79506,2788.4,2787.9,1.2975979]
[1645200809892,1.38202602,2788.7,2787.9,1.2975979]
[1645200809893,1.38202602,2788.7,2788.2,1.3211]
[1645200810095,1.38202602,2788.7,2787.9,0.5792]
[1645200810294,1.38202602,2788.7,2788.6,1.3211]
[1645200810495,0.89734,2788.9,2788.6,1.3211]
[1645200810696,1.7947,2788.9,2788.5,0.8972986]
[1645200810942,0.57219524,2788.8,2788.4,1.7945971]
[1645200811139,2.00227163,2788.8,2788.5,0.3]
[1645200811738,3.22497639,2788.8,2788.5,0.3]
[1645200812038,1.43007639,2788.8,2788.6,0.8972877]
[1645200812237,1.43007639,2788.8,2788.7,1.3211]
[1645200812638,1.43007639,2788.8,2788.4,1.7945971]
[1645200812840,1.43007639,2788.8,2787.7,1.50137705]
[1645200812841,0.89742,2788.7,2787.7,1.50137705]
[1645200813038,0.89742,2788.7,2787.7,1.32469018]
[1645200813238,1.89742,2788.7,2787.7,1.32469018]
[1645200813439,0.89762,2788.5,2787.7,0.00359018]
[1645200813841,0.89762,2788.5,2788.0,1.3211]
[1645200813842,0.68261224,2788.1,2788.0,1.3211]
[1645200814442,0.68261224,2788.1,2788.0,1.6211]
[1645200814692,3.69244,2788.4,2788.0,0.3911]
[1645200815294,1.89746,2788.4,2788.0,0.3911]
[1645200815695,0.30225323,2788.5,2788.0,0.3911]
[1645200816095,0.00225323,2788.5,2788.0,0.3911]
[1645200816294,0.89743,2788.4,2788.0,2.1859138]
[1645200816693,0.53625079,2788.2,2788.0,1.7948138]
[1645200817494,1.79487,2788.4,2788.0,1.7948138]
[1645200817696,1.79487,2788.4,2788.1,0.8973995]
[1645200818095,1.79487,2788.4,2788.2,0.3]
[1645200818541,1.79487,2788.4,2788.2,0.6911]
[1645200819339,1.79487,2788.4,2788.2,0.3]
[1645200819540,1.79487,2788.4,2788.2,0.6911]
[1645200819742,0.89743,2788.4,2788.2,0.6911]
[1645200819943,0.00208418,2788.5,2788.2,0.6911]
[1645200820139,0.00208418,2788.5,2788.3,1.2883769]
[1645200820343,0.00208418,2788.5,2788.4,0.3]
[1645200820840,0.89936418,2788.5,2788.4,0.6911]
[1645200821042,0.89936418,2788.5,2788.4,0.8703]
[1645200821043,0.00208418,2788.5,2788.4,0.8703]
[1645200821241,0.00208418,2788.5,2788.4,1.2873]
[1645200821443,0.00833521,2789.1,2788.5,6.0]
[1645200821646,0.00833521,2789.1,2789.0,21.1911]
[1645200821647,0.00837888,2789.1,2789.0,21.1911]
[1645200821843,0.00837888,2789.1,2789.0,21.3703]
[1645200822104,0.00837888,2789.1,2789.0,0.8703]
[1645200822494,0.00837888,2789.1,2789.0,0.6911]
[1645200822896,0.692961,2790.1,2789.0,0.3911]
[1645200822897,1.79386,2789.9,2789.0,0.3911]
[1645200823096,0.89696,2789.7,2789.1,2.6906185]
[1645200823295,1.42910989,2790.5,2789.6,0.3911]
[1645200823497,1.42910989,2790.5,2789.2,0.3]
[1645200823695,1.42910989,2790.5,2789.9,0.3911]
[1645200823895,1.42910989,2790.5,2790.0,0.896835]
[1645200823896,0.89683,2790.3,2790.0,0.896835]
[1645200824096,2.69049,2790.3,2790.0,0.896835]
[1645200824298,0.3,2790.2,2790.0,0.896835]
[1645200824496,0.3,2790.2,2790.0,0.59247468]
[1645200824697,1.3,2790.2,2790.0,0.29247468]
[1645200825297,0.3,2790.2,2790.0,0.29247468]
[1645200825498,0.89901859,2790.3,2790.0,0.29247468]
[1645200826339,0.00224886,2790.2,2790.0,0.29247468]
[1645200826739,0.00224886,2790.2,2789.3,0.1792]
[1645200826740,1.79612886,2790.2,2789.4,1.7938737]
[1645200826942,0.89718,2790.0,2789.0,0.09563187]
[1645200827242,1.19718,2790.0,2789.0,0.99278907]
[1645200827439,0.3,2790.0,2789.0,0.09563187]
[1645200827640,1.0,2790.1,2789.0,0.09563187]
[1645200827641,1.3,2790.1,2789.0,0.09563187]
[1645200827840,0.51335089,2789.4,2789.0,0.09563187]
[1645200828039,0.89723,2789.3,2789.0,0.09563187]
[1645200828239,1.19723,2789.3,2789.0,0.09563187]
[1645200828641,1.89947888,2789.3,2789.0,0.09563187]
[1645200828841,0.89947888,2789.3,2789.0,0.09563187]
[1645200829610,0.89723,2789.2,2789.0,0.09563187]
[1645200830998,0.89930352,2789.2,2789.0,0.02355719]
[1645200832201,0.90137704,2789.2,2789.0,0.42355719]
[1645200832399,0.89930352,2789.2,2789.0,0.42355719]
[1645200832605,1.19930352,2789.2,2789.0,0.42355719]
[1645200833001,0.89930352,2789.2,2789.0,0.42355719]
[1645200833438,1.20138832,2789.2,2789.0,0.42355719]
[1645200833642,1.1993148,2789.2,2789.0,0.42355719]
[1645200833839,0.0020848,2789.2,2789.0,0.42355719]
[1645200834039,0.0020848,2789.2,2789.1,0.3911]
[1645200834848,0.00208688,2789.2,2789.1,0.3911]
[1645200836039,2.69933626,2789.7,2789.1,0.3911]
[1645200836040,0.00208688,2789.3,2789.1,0.3911]
[1645200836440,0.00208688,2789.3,2789.1,0.46334803]
[1645200836641,0.00208688,2789.3,2789.1,2.25729043]
[1645200836843,0.00208688,2789.3,2789.2,0.3]
[1645200837094,0.00208562,2789.3,2789.2,0.3]
[1645200838289,0.0020852,2789.4,2789.2,0.3]
[1645200838488,0.0020852,2789.4,2789.3,0.3911]
[1645200838988,0.0020852,2789.4,2789.3,1.2879781]
[1645200839489,0.89698,2789.6,2789.3,1.2879781]
[1645200839490,0.0020852,2789.5,2789.3,1.2879781]
[1645200839890,0.0020852,2789.5,2789.3,0.3911]
[1645200840096,0.0020852,2789.5,2789.2,0.3]
[1645200840290,0.0020852,2789.5,2789.1,0.07224803]
[1645200840291,0.3020852,2789.5,2789.1,0.07224803]
[1645200840491,0.3020852,2789.5,2789.4,0.3911]
[1645200840492,0.8991252,2789.5,2789.4,0.3911]
[1645200840693,0.0020852,2789.5,2789.4,0.3911]
[1645200840941,0.89699,2789.6,2789.4,0.3911]
[1645200841343,0.89699,2789.6,2789.0,0.4]
[1645200841648,0.89699,2789.6,2789.2,0.3911]
[1645200841842,0.89699,2789.6,2789.5,0.3911]
[1645200842242,1.79388,2790.1,2789.5,0.3911]
[1645200842443,0.89701,2789.5,2789.2,1.7938491]
[1645200842645,3.15745314,2790.1,2789.4,0.3911]
[1645200842848,3.15745314,2790.1,2789.2,1.7938491]
[1645200842849,1.36357314,2790.1,2789.2,1.7938491]
[1645200843245,1.36357314,2790.1,2789.9,0.3911]
[1645200843444,1.06357314,2790.1,2789.9,0.3911]
[1645200843644,1.06357314,2790.1,2789.9,0.6911]
[1645200843845,1.28600999,2790.7,2789.9,0.6911]
[1645200844244,1.28600999,2790.7,2790.6,0.3911]
[1645200844445,1.4293551,2791.4,2790.6,0.3911]
[1645200844700,1.4293551,2791.4,2791.3,0.3911]
[1645200845098,7.49,2791.5,2790.8,21.217]
[1645200845300,0.0060825,2791.9,2791.4,0.3911]
[1645200845500,7.49,2792.1,2791.8,0.3911]
[1645200845713,7.49,2792.1,2791.4,2.6882394]
[1645200845897,7.49,2792.1,2791.6,0.3]
[1645200846299,7.49,2792.1,2791.4,2.0921596]
[1645200846699,7.49,2792.1,2790.6,0.1789]
[1645200846700,0.00223988,2792.0,2790.8,0.8965297]
[1645200846902,0.00223988,2792.0,2790.3,0.3911]
[1645200847102,1.79333,2791.8,2790.0,14.5089]
[1645200847298,1.7994125,2791.8,2790.6,0.3911]
[1645200847699,1.79337,2791.6,2790.6,0.3911]
[1645200847903,1.79337,2791.6,2790.7,0.8966451]
[1645200847904,0.00223989,2791.0,2790.7,0.8966451]
[1645200848097,1.25369265,2791.0,2790.7,0.8966451]
[1645200848343,1.25369265,2791.0,2790.8,0.3]
[1645200849146,1.25352612,2791.0,2790.8,0.3]
[1645200849345,2.15005612,2791.0,2790.8,0.3]
[1645200849545,1.25352612,2791.0,2790.9,0.3911]
[1645200850452,1.25145276,2791.0,2790.9,0.3911]
[1645200850649,1.25145276,2791.0,2790.8,0.3]
[1645200850848,1.25145276,2791.0,2790.8,0.6911]
[1645200851247,1.25145276,2791.0,2790.8,0.73911733]
[1645200851549,1.25352619,2791.0,2790.8,0.73911733]
[1645200852111,8.49,2791.4,2790.8,0.73911733]
[1645200852112,0.15002619,2791.1,2790.8,0.73911733]
[1645200852307,0.15002619,2791.1,2790.8,1.63569973]
[1645200852505,0.15002619,2791.1,2791.0,0.3911]
[1645200852708,0.00208613,2791.0,2790.8,1.24459973]
[1645200853109,0.00208613,2791.0,2790.8,22.04459973]
[1645200853305,0.00208613,2791.0,2790.9,1.28734]
[1645200853508,0.00208613,2791.0,2790.9,0.3911]
[1645200854008,0.9024025,2791.8,2790.9,0.3911]
[1645200854207,0.9024025,2791.8,2791.7,0.3911]
[1645200854406,2.68904,2791.8,2791.7,0.3911]
[1645200854808,0.84634,2791.9,2791.7,0.3911]
[1645200855206,0.79634,2791.9,2791.7,0.3911]
[1645200856040,0.79634,2791.9,2791.7,0.7911]
[1645200856440,0.79857993,2791.9,2791.7,0.7911]
[1645200857539,0.80081986,2791.9,2791.7,0.7911]
[1645200857739,0.74857993,2791.9,2791.7,0.7911]
[1645200857941,0.01504088,2792.4,2791.8,6.5]
[1645200858146,0.01504088,2792.4,2792.3,0.3911]
[1645200858147,0.00895838,2792.4,2792.3,0.3911]
[1645200859041,7.49,2792.7,2792.3,0.3911]
[1645200859242,7.49,2792.7,2792.6,0.3911]
[1645200859704,7.49,2792.7,2792.6,0.57]
[1645200860005,0.0060825,2793.1,2792.8,20.8]
[1645200860306,7.4960825,2793.3,2793.0,0.3911]
[1645200860505,7.49,2793.3,2793.2,0.3911]
[1645200860707,7.49,2793.3,2793.1,1.7913542]
[1645200860906,7.44,2793.3,2793.2,0.3911]
[1645200861105,0.0060825,2793.7,2793.1,1.7824542]
[1645200861309,0.00219391,2793.3,2793.1,1.7824542]
[1645200861704,0.00219391,2793.3,2793.2,0.8956442]
[1645200862305,0.00444271,2793.3,2793.2,0.8956442]
[1645200862503,7.50507635,2793.8,2793.2,0.8956442]
[1645200862705,0.00899385,2793.8,2793.2,0.8956442]
[1645200862905,0.00899385,2793.8,2793.3,21.1]
[1645200863107,7.4960825,2794.0,2793.6,6.5]
[1645200863108,6.85161202,2794.0,2793.6,6.5]
[1645200863378,0.0060825,2794.6,2793.9,0.01224038]
[1645200863561,0.0432886,2795.2,2794.4,0.01269492]
[1645200863757,0.0432886,2795.2,2794.6,20.8]
[1645200864157,3.9353537,2796.3,2794.6,20.8]
[1645200864158,0.3465449,2796.3,2794.7,21.217]
[1645200864365,0.3465449,2796.3,2794.9,20.8]
[1645200864559,0.3465449,2796.3,2794.7,0.5957]
[1645200864560,0.04263176,2795.6,2795.1,25.8]
[1645200864757,0.04263176,2795.6,2795.2,21.217]
[1645200864957,0.01803872,2796.5,2795.3,0.1787]
[1645200864958,0.04206333,2795.5,2795.3,0.1787]
[1645200865260,0.04206333,2795.5,2795.1,1.3]
[1645200865458,0.04149491,2795.4,2795.1,1.3]
[1645200865757,0.04149491,2795.4,2795.1,0.3]
[1645200865960,0.04092649,2795.3,2794.3,14.2994]
[1645200866159,0.04092649,2795.3,2794.4,20.8]
[1645200866457,0.04035806,2795.2,2794.7,1.7900224]
[1645200866656,0.04035806,2795.2,2794.5,0.3]
[1645200866657,1.46844808,2795.2,2794.5,0.3]
[1645200867092,1.46844808,2795.2,2794.3,0.417]
[1645200867293,0.00225055,2795.1,2794.3,0.417]
[1645200867493,0.00225055,2795.1,2794.2,1.3]
[1645200867494,0.00225055,2795.1,2794.2,1.0]
[1645200867892,0.70938005,2794.9,2794.3,0.4]
[1645200868595,0.00223587,2794.8,2794.3,0.4]
[1645200869193,0.00223587,2794.8,2794.4,6.5]
[1645200869194,9.548e-05,2794.8,2794.4,6.5]
[1645200869394,2.68608,2796.0,2794.4,6.5]
[1645200869395,0.15623869,2796.5,2794.7,0.01247461]
[1645200869594,0.15623869,2796.5,2794.8,21.3957]
[1645200869797,0.00894214,2795.1,2794.8,3.1348]
[1645200869997,0.00894214,2795.1,2794.8,2.9561]
[1645200870204,0.00894214,2795.1,2794.4,26.7126]
[1645200870398,0.00894214,2795.1,2794.3,0.817]
[1645200870399,6.5,2795.0,2794.3,0.817]
[1645200870600,6.5,2795.0,2794.3,0.4]
[1645200870869,0.1789,2794.9,2794.3,0.4]
[1645200871056,6.5,2795.0,2794.3,0.4]
[1645200871057,6.6789,2795.0,2794.3,0.4]
[1645200871256,1.0,2794.9,2794.3,0.4]
[1645200871656,0.33688807,2795.1,2794.4,20.8]
[1645200872056,0.33443407,2795.1,2794.4,20.8]
[1645200872254,0.33443407,2795.1,2794.5,0.417]
[1645200872554,0.33443407,2795.1,2794.8,20.8]
[1645200872555,0.33352605,2795.1,2794.8,20.8]
[1645200872755,0.33352605,2795.1,2794.9,20.8]
[1645200872955,0.00201771,2795.3,2794.9,21.694961]
[1645200873156,0.00806884,2796.0,2795.1,20.8]
[1645200873356,0.00209131,2795.3,2795.2,21.217]
[1645200873555,0.00209131,2795.3,2795.2,21.3957]
[1645200874154,9.131e-05,2795.3,2795.2,21.3957]
[1645200874355,0.00836317,2796.0,2795.2,21.3957]
[1645200874356,0.00836317,2796.0,2795.4,20.8]
[1645200874602,0.00813817,2796.5,2796.2,20.8]
[1645200874901,0.0142134,2798.3,2796.5,20.8]
[1645200874902,0.1787,2798.2,2796.5,20.8]
[1645200875102,0.1787,2798.2,2796.6,0.417]
[1645200875303,0.34844855,2798.3,2797.1,21.48425594]
[1645200875504,0.34844855,2798.3,2797.3,20.8]
[1645200875505,0.29844855,2798.3,2797.3,20.8]
[1645200875701,0.0431849,2798.8,2798.0,0.8939781]
[1645200875903,0.0431849,2798.8,2797.8,0.417]
[1645200876102,0.1786,2798.7,2797.2,2.3806]
[1645200876404,0.1786,2798.7,2797.4,0.3]
[1645200876405,0.0786,2798.7,2797.4,0.3]
[1645200876605,0.0431849,2798.8,2797.7,5.0]
[1645200876807,0.0246,2800.0,2798.2,21.6938524]
[1645200877005,0.0246,2800.0,2798.0,1.7877048]
[1645200877006,0.70025605,2799.6,2798.0,1.7877048]
[1645200877205,0.70025605,2799.6,2798.0,2.0877048]
[1645200877402,0.70025605,2799.6,2798.0,0.3]
[1645200877606,0.70025605,2799.6,2797.9,0.3]
[1645200877807,0.70025605,2799.6,2797.8,0.417]
[1645200877808,0.70025605,2799.6,2798.0,1.0]
[1645200878002,5.70025605,2799.6,2798.0,1.3]
[1645200878206,1.74934279,2799.9,2798.1,4.0]
[1645200878455,0.0246,2800.0,2798.2,3.5]
[1645200878654,0.0246,2800.0,2798.0,1.3]
[1645200878655,5.0246,2800.0,2798.0,1.3]
[1645200878855,3.5,2799.9,2798.0,0.3]
[1645200879161,5.0,2799.4,2797.9,1.3]
[1645200879359,5.0,2799.7,2797.9,1.3]
[1645200879555,0.61491919,2799.5,2797.9,1.96140253]
[1645200879756,0.61491919,2799.5,2797.9,0.96140253]
[1645200879955,0.61491919,2799.5,2797.9,0.3]
[1645200880255,0.61491919,2799.5,2797.5,0.417]
[1645200880660,0.61491919,2799.5,2797.5,0.21718994]
[1645200880855,0.91491919,2799.5,2797.5,0.21718994]
[1645200881056,1.44703825,2798.9,2797.5,0.21718994]
[1645200881260,1.78862,2799.1,2798.1,0.05391042]
[1645200881261,0.3,2798.8,2798.1,0.05391042]
[1645200881464,5.3658,2799.7,2798.1,0.07275664]
[1645200881663,0.0246,2800.0,2798.1,0.07275664]
[1645200881860,0.07899,2799.9,2798.1,0.07275664]
[1645200882300,0.0246,2800.0,2798.1,0.07275664]
[1645200882301,0.0246,2800.0,2798.7,0.58081355]
[1645200882502,0.0001,2800.0,2799.0,0.01221082]
[1645200882702,0.0001,2800.0,2799.2,20.8]
[1645200882901,0.0001,2800.0,2799.2,0.417]
[1645200883103,0.00224069,2799.5,2799.2,0.417]
[1645200883500,0.00224069,2799.5,2799.3,0.61755478]
[1645200883901,0.00224069,2799.5,2799.3,0.717]
[1645200883902,4.069e-05,2799.5,2799.3,0.717]
[1645200884103,4.069e-05,2799.5,2799.3,1.07712]
[1645200884303,8.165e-05,2799.5,2799.4,8.5]
[1645200884501,8.165e-05,2799.5,2799.4,8.917]
[1645200884702,8.165e-05,2799.5,2799.4,3.917]
[1645200884901,8.165e-05,2799.5,2799.4,21.217]
[1645200885108,8.165e-05,2799.5,2799.4,0.417]
[1645200885301,0.0001,2800.0,2799.4,0.417]
[1645200885703,0.0001,2800.0,2799.4,2.2038073]
[1645200885946,0.0001,2800.0,2799.4,2.5038073]
[1645200886149,0.0001,2800.0,2799.4,0.717]
[1645200886347,0.56800318,2800.0,2799.4,0.3]
[1645200886652,0.56818999,2800.0,2799.3,1.32427395]
[1645200886848,0.56818999,2800.0,2799.3,1.51778655]
[1645200886849,0.5687264,2800.0,2799.3,1.51778655]
[1645200887046,0.56840288,2800.0,2799.4,0.417]
[1645200887445,0.56840288,2800.0,2799.3,0.02427395]
[1645200887647,6.5,2799.9,2797.7,0.5]
[1645200887949,5.0,2798.9,2797.7,0.5]
[1645200888147,3.6786,2798.8,2795.9,0.1786]
[1645200888351,0.89451,2798.5,2796.8,0.57047484]
[1645200888547,0.1787,2798.4,2796.8,0.57047484]
[1645200888847,0.1787,2798.8,2797.2,0.01216809]
[1645200889046,1.0,2799.5,2797.8,0.01287667]
[1645200889047,0.1786,2799.4,2797.8,0.01287667]
[1645200889245,0.1786,2799.4,2798.6,0.60300791]
[1645200889453,0.49776565,2799.5,2798.1,22.1107071]
[1645200889692,0.00207852,2799.6,2798.2,21.3956]
[1645200889892,0.00207852,2799.6,2798.2,0.5956]
[1645200890093,0.00207852,2799.6,2798.2,0.8956]
[1645200890391,0.0020797,2799.6,2798.3,0.52801206]
[1645200890592,0.0020797,2799.6,2798.4,0.417]
[1645200890793,0.1786,2799.5,2798.4,0.417]
[1645200890993,3.0,2799.5,2798.6,20.8]
[1645200891192,0.0020797,2799.6,2798.7,0.417]
[1645200891392,0.0020797,2799.6,2798.5,0.3]
[1645200891393,0.0020797,2799.6,2799.4,0.00763364]
[1645200891598,0.1521,2799.5,2799.4,0.00763364]
[1645200892594,0.0020797,2799.6,2799.4,0.00763364]
[1645200892793,0.0020651,2799.6,2799.4,0.40763364]
[1645200893859,0.00209558,2799.6,2799.4,0.40763364]
[1645200894257,0.1522,2799.9,2799.4,0.40763364]
[1645200894258,0.10429558,2799.9,2799.4,0.40763364]
[1645200895358,0.88588767,2800.3,2799.4,0.40763364]
[1645200895558,1.0,2800.7,2799.5,20.8]
[1645200895758,0.8936,2800.5,2799.5,21.1]
[1645200895960,1.8936,2800.5,2799.5,0.3]
[1645200896161,1.8936,2800.5,2799.4,0.40763364]
[1645200896162,2.78721,2800.5,2799.4,0.40763364]
[1645200896462,2.78721,2800.5,2799.5,20.84548872]
[1645200896463,1.0,2800.5,2799.5,20.84548872]
[1645200896662,0.13819997,2800.8,2799.5,20.84548872]
[1645200896663,1.13819997,2800.8,2799.5,20.84548872]
[1645200896861,0.13819997,2800.8,2799.5,20.84548872]
[1645200897102,1.03171997,2800.8,2799.5,20.84548872]
[1645200897304,0.89356,2800.6,2799.5,0.04548872]
[1645200897509,0.00222462,2800.3,2799.5,0.04548872]
[1645200898201,0.69205674,2800.2,2799.5,0.04548872]
[1645200898602,0.00222463,2800.0,2799.5,0.04548872]
[1645200898802,0.00222463,2800.0,2799.7,0.5]
[1645200899400,0.00222463,2800.0,2799.5,0.04548872]
[1645200900004,0.00222544,2800.0,2799.5,0.04548872]
[1645200900604,0.00222544,2800.0,2799.5,20.84548872]
[1645200900850,0.00222544,2800.0,2799.6,20.9784]
[1645200901044,0.00890043,2800.4,2799.6,20.9784]
[1645200901045,0.00222544,2799.9,2799.6,20.9784]
[1645200901247,0.00222544,2799.9,2799.8,0.3]
[1645200901646,0.00222544,2799.9,2799.4,21.2]
[1645200901846,0.00222544,2799.9,2799.6,20.8]
[1645200902044,0.00222544,2799.9,2799.6,0.3]
[1645200902448,0.00206114,2800.0,2799.6,20.8]
[1645200903244,0.00206114,2800.0,2799.6,20.9784]
[1645200903444,0.00206096,2799.9,2799.6,20.9784]
[1645200903645,0.0060405,2800.3,2799.8,20.8]
[1645200903646,0.00010146,2800.3,2799.8,20.8]
[1645200903847,0.0566282,2801.7,2800.2,20.8]
[1645200904047,8.86e-05,2800.9,2800.4,21.35126476]
[1645200904247,8.86e-05,2800.9,2800.4,20.8]
[1645200904450,8.86e-05,2800.9,2800.4,0.3]
[1645200904899,8.86e-05,2800.9,2800.1,0.3]
[1645200905104,8.86e-05,2800.9,2799.6,6.67881443]
[1645200905298,3.5,2801.5,2799.6,0.70081443]